[Event "Titled Tuesday Blitz May 9 Early 2023"]
[White "Fabris, Alberto"]
[Black "Yosha_Iglesias"]
[WhiteFideId "801348"]
[WhiteElo "2161"]
[BlackElo "2430"]
[Result "1/2-1/2"]
[Round "04"]
[TimeControl "180+2"]
[Date "2023.05.09"]
[WhiteClock "0:00:18"]
[BlackClock "0:00:06"]

1. e4 {[%clk 0:03:00]}  c5 {[%clk 0:02:59]} 2. Nf3 {[%clk 0:02:59]}  d6 {[%clk 0:02:58]} 3. Bb5+ {[%clk 0:02:58]}  Bd7 {[%clk 0:02:58]} 4. a4 {[%clk 0:02:57]}  Nf6 {[%clk 0:02:54]} 5. Nc3 {[%clk 0:02:56]}  Nc6 {[%clk 0:02:50]} 6. O-O {[%clk 0:02:55]}  e6 {[%clk 0:02:46]} 7. d4 {[%clk 0:02:53]}  cxd4 {[%clk 0:02:45]} 8. Nxd4 {[%clk 0:02:54]}  Be7 {[%clk 0:02:46]} 9. Bg5 {[%clk 0:02:50]}  Nxe4 {[%clk 0:01:44]} 10. Nxe4 {[%clk 0:02:48]}  Bxg5 {[%clk 0:01:43]} 11. Nxd6+ {[%clk 0:02:48]}  Kf8 {[%clk 0:01:36]} 12. Nxb7 {[%clk 0:02:45]}  Qc7 {[%clk 0:01:31]} 13. Nxc6 {[%clk 0:02:34]}  Bxc6 {[%clk 0:01:21]} 14. Bxc6 {[%clk 0:02:33]}  Qxc6 {[%clk 0:01:19]} 15. Qd6+ {[%clk 0:02:33]}  Qxd6 {[%clk 0:01:19]} 16. Nxd6 {[%clk 0:02:34]}  Bf6 {[%clk 0:01:05]} 17. Rab1 {[%clk 0:02:30]}  Ke7 {[%clk 0:01:04]} 18. Nc4 {[%clk 0:02:29]}  Rhc8 {[%clk 0:00:57]} 19. b3 {[%clk 0:02:28]}  Bc3 {[%clk 0:00:57]} 20. Rfd1 {[%clk 0:02:28]}  Rd8 {[%clk 0:00:54]} 21. Kf1 {[%clk 0:02:26]}  Rd5 {[%clk 0:00:49]} 22. Ne3 {[%clk 0:02:21]}  Rh5 {[%clk 0:00:47]} 23. h3 {[%clk 0:02:19]}  Rc8 {[%clk 0:00:46]} 24. Ke2 {[%clk 0:02:17]}  a5 {[%clk 0:00:37]} 25. Rd3 {[%clk 0:02:15]}  Bb4 {[%clk 0:00:33]} 26. Rbd1 {[%clk 0:02:13]}  Rc7 {[%clk 0:00:27]} 27. Nc4 {[%clk 0:02:12]}  Rhc5 {[%clk 0:00:22]} 28. Rd8 {[%clk 0:01:59]}  Rxc4 {[%clk 0:00:15]} 29. bxc4 {[%clk 0:01:58]}  Rxc4 {[%clk 0:00:16]} 30. R8d7+ {[%clk 0:01:54]}  Kf6 {[%clk 0:00:16]} 31. Rc1 {[%clk 0:01:43]}  Ba3 {[%clk 0:00:14]} 32. Ra1 {[%clk 0:01:42]}  Bb2 {[%clk 0:00:13]} 33. Ra2 {[%clk 0:01:40]}  Rxc2+ {[%clk 0:00:11]} 34. Kd3 {[%clk 0:01:31]}  Rxf2 {[%clk 0:00:11]} 35. Rb7 {[%clk 0:01:30]}  Bd4 {[%clk 0:00:11]} 36. Rxf2+ {[%clk 0:01:28]}  Bxf2 {[%clk 0:00:12]} 37. Ke2 {[%clk 0:01:18]}  Bc5 {[%clk 0:00:12]} 38. Kf3 {[%clk 0:01:17]}  h5 {[%clk 0:00:10]} 39. Ke4 {[%clk 0:01:15]}  Bb4 {[%clk 0:00:08]} 40. Rb5 {[%clk 0:01:13]}  g6 {[%clk 0:00:08]} 41. Rb7 {[%clk 0:01:11]}  Be1 {[%clk 0:00:06]} 42. g4 {[%clk 0:01:10]}  hxg4 {[%clk 0:00:06]} 43. hxg4 {[%clk 0:01:10]}  Bd2 {[%clk 0:00:06]} 44. Rb5 {[%clk 0:01:08]}  Be1 {[%clk 0:00:06]} 45. g5+ {[%clk 0:01:07]}  Kg7 {[%clk 0:00:07]} 46. Kf4 {[%clk 0:00:59]}  Bd2+ {[%clk 0:00:07]} 47. Kg4 {[%clk 0:01:00]}  Bc3 {[%clk 0:00:07]} 48. Rb7 {[%clk 0:00:58]}  Bd2 {[%clk 0:00:07]} 49. Rb5 {[%clk 0:00:55]}  Bc3 {[%clk 0:00:07]} 50. Kf3 {[%clk 0:00:54]}  Bd2 {[%clk 0:00:07]} 51. Ke4 {[%clk 0:00:55]}  Kg8 {[%clk 0:00:03]} 52. Kd4 {[%clk 0:00:51]}  Kg7 {[%clk 0:00:02]} 53. Kd3 {[%clk 0:00:51]}  Be1 {[%clk 0:00:02]} 54. Kc4 {[%clk 0:00:49]}  f6 {[%clk 0:00:01]} 55. Rb7+ {[%clk 0:00:47]}  Kf8 {[%clk 0:00:02]} 56. gxf6 {[%clk 0:00:47]}  g5 {[%clk 0:00:02]} 57. Re7 {[%clk 0:00:43]}  g4 {[%clk 0:00:01]} 58. Rxe6 {[%clk 0:00:43]}  Bf2 {[%clk 0:00:02]} 59. Re4 {[%clk 0:00:35]}  g3 {[%clk 0:00:02]} 60. Rg4 {[%clk 0:00:34]}  Kf7 {[%clk 0:00:02]} 61. Kb5 {[%clk 0:00:32]}  Be1 {[%clk 0:00:03]} 62. Re4 {[%clk 0:00:21]}  Bf2 {[%clk 0:00:03]} 63. Kxa5 {[%clk 0:00:18]}  g2 {[%clk 0:00:03]} 64. Rg4 {[%clk 0:00:17]}  g1=Q {[%clk 0:00:03]} 65. Rxg1 {[%clk 0:00:16]}  Bxg1 {[%clk 0:00:04]} 66. Kb5 {[%clk 0:00:16]}  Kxf6 {[%clk 0:00:04]} 67. Kc6 {[%clk 0:00:16]}  Ke7 {[%clk 0:00:05]} 68. a5 {[%clk 0:00:17]}  Kd8 {[%clk 0:00:05]} 69. Kb7 {[%clk 0:00:17]}  Kd7 {[%clk 0:00:06]} 70. a6 {[%clk 0:00:17]}  Kd6 {[%clk 0:00:06]} 71. a7 {[%clk 0:00:18]}  Bxa7 {[%clk 0:00:06]} 1/2-1/2


[Site "https://www.chess.com"]

[Event "Titled Tuesday Blitz May 9 Early 2023"]
[White "Vidruska, Renate"]
[Black "Mouhamad, Joachim"]
[WhiteFideId "11601841"]
[BlackFideId "656410"]
[WhiteElo "1976"]
[BlackElo "2125"]
[Result "1/2-1/2"]
[Round "04"]
[TimeControl "180+2"]
[Date "2023.05.09"]
[WhiteClock "0:00:06"]
[BlackClock "0:00:11"]

1. e4 {[%clk 0:02:56]}  c5 {[%clk 0:02:59]} 2. Nf3 {[%clk 0:02:54]}  Nc6 {[%clk 0:02:58]} 3. d4 {[%clk 0:02:55]}  cxd4 {[%clk 0:02:58]} 4. Nxd4 {[%clk 0:02:55]}  Nf6 {[%clk 0:02:59]} 5. Nc3 {[%clk 0:02:56]}  d6 {[%clk 0:02:57]} 6. g3 {[%clk 0:02:55]}  g6 {[%clk 0:02:55]} 7. Bg2 {[%clk 0:02:54]}  Bg7 {[%clk 0:02:54]} 8. Nde2 {[%clk 0:02:53]}  O-O {[%clk 0:02:40]} 9. O-O {[%clk 0:02:48]}  Bd7 {[%clk 0:02:24]} 10. h3 {[%clk 0:02:46]}  Rc8 {[%clk 0:02:23]} 11. Kh2 {[%clk 0:02:38]}  a6 {[%clk 0:02:22]} 12. a4 {[%clk 0:02:38]}  Nb4 {[%clk 0:02:19]} 13. Be3 {[%clk 0:02:29]}  b6 {[%clk 0:02:01]} 14. g4 {[%clk 0:02:21]}  Qc7 {[%clk 0:02:00]} 15. Kh1 {[%clk 0:02:06]}  Rfd8 {[%clk 0:02:00]} 16. f4 {[%clk 0:01:59]}  Bc6 {[%clk 0:01:59]} 17. Ng3 {[%clk 0:01:56]}  d5 {[%clk 0:01:55]} 18. e5 {[%clk 0:01:55]}  Ne4 {[%clk 0:01:55]} 19. Ncxe4 {[%clk 0:01:38]}  dxe4 {[%clk 0:01:55]} 20. Qe2 {[%clk 0:01:38]}  Bb7 {[%clk 0:01:50]} 21. c3 {[%clk 0:01:36]}  Nd5 {[%clk 0:01:42]} 22. Bd4 {[%clk 0:01:32]}  e3 {[%clk 0:01:34]} 23. Bxe3 {[%clk 0:01:29]}  Nxe3 {[%clk 0:01:34]} 24. Qxe3 {[%clk 0:01:30]}  Bxg2+ {[%clk 0:01:32]} 25. Kxg2 {[%clk 0:01:31]}  e6 {[%clk 0:01:28]} 26. Rf2 {[%clk 0:01:22]}  Qc6+ {[%clk 0:01:26]} 27. Kh2 {[%clk 0:01:22]}  Bf8 {[%clk 0:01:23]} 28. Rd2 {[%clk 0:01:20]}  Bc5 {[%clk 0:01:21]} 29. Rxd8+ {[%clk 0:01:20]}  Rxd8 {[%clk 0:01:22]} 30. Qe2 {[%clk 0:01:16]}  a5 {[%clk 0:00:53]} 31. Ne4 {[%clk 0:01:14]}  Be7 {[%clk 0:00:53]} 32. Ng3 {[%clk 0:00:59]}  Qd7 {[%clk 0:00:50]} 33. Kg1 {[%clk 0:00:44]}  Qd2 {[%clk 0:00:46]} 34. Re1 {[%clk 0:00:41]}  Bc5+ {[%clk 0:00:40]} 35. Kg2 {[%clk 0:00:37]}  Qxe2+ {[%clk 0:00:34]} 36. Rxe2 {[%clk 0:00:37]}  Rd1 {[%clk 0:00:25]} 37. Ne4 {[%clk 0:00:35]}  Be7 {[%clk 0:00:26]} 38. Rd2 {[%clk 0:00:33]}  Rb1 {[%clk 0:00:14]} 39. Kf3 {[%clk 0:00:29]}  Kf8 {[%clk 0:00:15]} 40. Ke2 {[%clk 0:00:26]}  Rh1 {[%clk 0:00:14]} 41. Nf2 {[%clk 0:00:26]}  Ra1 {[%clk 0:00:10]} 42. Rd4 {[%clk 0:00:18]}  Bc5 {[%clk 0:00:07]} 43. Re4 {[%clk 0:00:18]}  Ra2 {[%clk 0:00:07]} 44. Nd3 {[%clk 0:00:18]}  Bg1 {[%clk 0:00:06]} 45. Kd2 {[%clk 0:00:18]}  Ra1 {[%clk 0:00:05]} 46. Kc2 {[%clk 0:00:18]}  Rf1 {[%clk 0:00:06]} 47. Re2 {[%clk 0:00:17]}  Rf3 {[%clk 0:00:06]} 48. Rg2 {[%clk 0:00:15]}  Be3 {[%clk 0:00:04]} 49. Re2 {[%clk 0:00:12]}  Bxf4 {[%clk 0:00:04]} 50. Ne1 {[%clk 0:00:12]}  Rxh3 {[%clk 0:00:04]} 51. Nd3 {[%clk 0:00:12]}  Bg3 {[%clk 0:00:04]} 52. Re3 {[%clk 0:00:11]}  Rh2+ {[%clk 0:00:04]} 53. Kb3 {[%clk 0:00:11]}  Bh4 {[%clk 0:00:05]} 54. Re4 {[%clk 0:00:11]}  Bg5 {[%clk 0:00:04]} 55. Rd4 {[%clk 0:00:10]}  h5 {[%clk 0:00:04]} 56. gxh5 {[%clk 0:00:09]}  gxh5 {[%clk 0:00:05]} 57. Rd6 {[%clk 0:00:08]}  Be3 {[%clk 0:00:04]} 58. Ne1 {[%clk 0:00:06]}  h4 {[%clk 0:00:04]} 59. Nf3 {[%clk 0:00:07]}  Rh1 {[%clk 0:00:04]} 60. Rd8+ {[%clk 0:00:07]}  Kg7 {[%clk 0:00:04]} 61. Rd3 {[%clk 0:00:06]}  h3 {[%clk 0:00:04]} 62. Rxe3 {[%clk 0:00:06]}  Rf1 {[%clk 0:00:04]} 63. Nh2 {[%clk 0:00:06]}  Rf5 {[%clk 0:00:03]} 64. Rxh3 {[%clk 0:00:06]}  Rxe5 {[%clk 0:00:04]} 65. Rg3+ {[%clk 0:00:07]}  Kf8 {[%clk 0:00:04]} 66. Ng4 {[%clk 0:00:07]}  Rg5 {[%clk 0:00:04]} 67. Rg2 {[%clk 0:00:07]}  f5 {[%clk 0:00:04]} 68. Ne3 {[%clk 0:00:07]}  Rxg2 {[%clk 0:00:04]} 69. Nxg2 {[%clk 0:00:08]}  Ke7 {[%clk 0:00:04]} 70. Kc4 {[%clk 0:00:08]}  e5 {[%clk 0:00:05]} 71. Kd5 {[%clk 0:00:09]}  Kf6 {[%clk 0:00:05]} 72. Ne3 {[%clk 0:00:08]}  f4 {[%clk 0:00:05]} 73. Nf1 {[%clk 0:00:07]}  Kf5 {[%clk 0:00:05]} 74. c4 {[%clk 0:00:07]}  e4 {[%clk 0:00:05]} 75. Kd4 {[%clk 0:00:07]}  e3 {[%clk 0:00:05]} 76. Kd3 {[%clk 0:00:06]}  Ke5 {[%clk 0:00:04]} 77. b3 {[%clk 0:00:05]}  Kf5 {[%clk 0:00:04]} 78. Nxe3+ {[%clk 0:00:02]}  fxe3 {[%clk 0:00:04]} 79. Kxe3 {[%clk 0:00:03]}  Ke5 {[%clk 0:00:05]} 80. Kd3 {[%clk 0:00:02]}  Kd6 {[%clk 0:00:04]} 81. Kd4 {[%clk 0:00:03]}  Kc6 {[%clk 0:00:05]} 82. Ke5 {[%clk 0:00:02]}  Kc5 {[%clk 0:00:05]} 83. Ke6 {[%clk 0:00:02]}  Kb4 {[%clk 0:00:06]} 84. Kd5 {[%clk 0:00:02]}  Kxb3 {[%clk 0:00:06]} 85. c5 {[%clk 0:00:02]}  bxc5 {[%clk 0:00:06]} 86. Kxc5 {[%clk 0:00:02]}  Kxa4 {[%clk 0:00:07]} 87. Kc4 {[%clk 0:00:03]}  Ka3 {[%clk 0:00:08]} 88. Kc3 {[%clk 0:00:03]}  a4 {[%clk 0:00:09]} 89. Kc2 {[%clk 0:00:04]}  Ka2 {[%clk 0:00:09]} 90. Kc1 {[%clk 0:00:04]}  a3 {[%clk 0:00:09]} 91. Kc2 {[%clk 0:00:04]}  Ka1 {[%clk 0:00:10]} 92. Kc1 {[%clk 0:00:05]}  Ka2 {[%clk 0:00:10]} 93. Kc2 {[%clk 0:00:05]}  Ka1 {[%clk 0:00:10]} 94. Kc1 {[%clk 0:00:06]}  a2 {[%clk 0:00:11]} 95. Kc2 {[%clk 0:00:06]} 1/2-1/2


[Site "https://www.chess.com"]

[Event "Titled Tuesday Blitz May 9 Early 2023"]
[White "Sailer, Mike"]
[Black "Sargissyan, Sargis"]
[WhiteFideId "2012901"]
[BlackFideId "13303210"]
[WhiteElo "2109"]
[BlackElo "2109"]
[Result "0-1"]
[Round "04"]
[TimeControl "180+2"]
[Date "2023.05.09"]
[WhiteClock "0:00:00"]
[BlackClock "0:00:11"]

1. d4 {[%clk 0:03:00]}  Nf6 {[%clk 0:02:59]} 2. Bg5 {[%clk 0:02:56]}  g6 {[%clk 0:02:57]} 3. Bxf6 {[%clk 0:02:56]}  exf6 {[%clk 0:02:57]} 4. e3 {[%clk 0:02:57]}  d5 {[%clk 0:02:56]} 5. c4 {[%clk 0:02:57]}  c6 {[%clk 0:02:56]} 6. cxd5 {[%clk 0:02:58]}  cxd5 {[%clk 0:02:57]} 7. Nc3 {[%clk 0:02:58]}  Be6 {[%clk 0:02:51]} 8. Qb3 {[%clk 0:02:58]}  Nd7 {[%clk 0:02:20]} 9. Nge2 {[%clk 0:02:53]}  Qb6 {[%clk 0:02:13]} 10. Qxb6 {[%clk 0:02:49]}  Nxb6 {[%clk 0:02:13]} 11. Nf4 {[%clk 0:02:47]}  Bb4 {[%clk 0:02:07]} 12. Bb5+ {[%clk 0:02:47]}  Ke7 {[%clk 0:02:05]} 13. Ke2 {[%clk 0:02:25]}  Rac8 {[%clk 0:01:47]} 14. Rhc1 {[%clk 0:02:16]}  g5 {[%clk 0:01:34]} 15. Nd3 {[%clk 0:02:12]}  Bxc3 {[%clk 0:01:29]} 16. Rxc3 {[%clk 0:02:07]}  Rxc3 {[%clk 0:01:21]} 17. bxc3 {[%clk 0:02:06]}  a6 {[%clk 0:01:22]} 18. Rb1 {[%clk 0:01:59]}  axb5 {[%clk 0:01:17]} 19. Rxb5 {[%clk 0:01:59]}  Nd7 {[%clk 0:00:59]} 20. Rxb7 {[%clk 0:01:58]}  Ra8 {[%clk 0:00:35]} 21. Nb4 {[%clk 0:01:53]}  Ra3 {[%clk 0:00:29]} 22. Kd2 {[%clk 0:01:51]}  Kd6 {[%clk 0:00:27]} 23. f3 {[%clk 0:01:39]}  h5 {[%clk 0:00:26]} 24. e4 {[%clk 0:01:39]}  dxe4 {[%clk 0:00:18]} 25. fxe4 {[%clk 0:01:39]}  Bxa2 {[%clk 0:00:14]} 26. Kc2 {[%clk 0:01:12]}  Bc4 {[%clk 0:00:15]} 27. Kb2 {[%clk 0:00:53]}  Rb3+ {[%clk 0:00:15]} 28. Kc2 {[%clk 0:00:53]}  Ra3 {[%clk 0:00:15]} 29. Kb2 {[%clk 0:00:54]}  Rb3+ {[%clk 0:00:15]} 30. Kc2 {[%clk 0:00:54]}  h4 {[%clk 0:00:16]} 31. g3 {[%clk 0:00:50]}  hxg3 {[%clk 0:00:15]} 32. hxg3 {[%clk 0:00:50]}  Ra3 {[%clk 0:00:14]} 33. Kb2 {[%clk 0:00:51]}  Ra8 {[%clk 0:00:13]} 34. Kc2 {[%clk 0:00:18]}  Ra1 {[%clk 0:00:13]} 35. Kd2 {[%clk 0:00:16]}  Rg1 {[%clk 0:00:13]} 36. Nc2 {[%clk 0:00:06]}  Rg2+ {[%clk 0:00:11]} 37. Kc1 {[%clk 0:00:00]}  Rxg3 {[%clk 0:00:11]} 0-1


[Site "https://www.chess.com"]

[Event "Titled Tuesday Blitz May 9 Early 2023"]
[White "Butti, Enrique"]
[Black "Da Silva, Lindolfo Luiz"]
[WhiteFideId "3700470"]
[BlackFideId "2106558"]
[WhiteElo "2080"]
[BlackElo "2420"]
[Result "0-1"]
[Round "04"]
[TimeControl "180+2"]
[Date "2023.05.09"]
[WhiteClock "0:00:00"]
[BlackClock "0:00:16"]

1. d4 {[%clk 0:02:59]}  Nf6 {[%clk 0:02:59]} 2. Nf3 {[%clk 0:02:58]}  g6 {[%clk 0:03:00]} 3. c4 {[%clk 0:02:57]}  Bg7 {[%clk 0:03:01]} 4. Nc3 {[%clk 0:02:57]}  d6 {[%clk 0:03:02]} 5. e4 {[%clk 0:02:57]}  O-O {[%clk 0:03:03]} 6. Be2 {[%clk 0:02:57]}  e5 {[%clk 0:03:03]} 7. d5 {[%clk 0:02:56]}  a5 {[%clk 0:03:03]} 8. Bg5 {[%clk 0:02:56]}  Na6 {[%clk 0:03:03]} 9. Nd2 {[%clk 0:02:55]}  h6 {[%clk 0:02:59]} 10. Bh4 {[%clk 0:02:54]}  Bd7 {[%clk 0:03:00]} 11. O-O {[%clk 0:02:51]}  Qe8 {[%clk 0:03:00]} 12. b3 {[%clk 0:02:46]}  Nh7 {[%clk 0:03:00]} 13. a3 {[%clk 0:02:42]}  h5 {[%clk 0:03:00]} 14. f3 {[%clk 0:02:27]}  Bh6 {[%clk 0:03:00]} 15. Bf2 {[%clk 0:02:26]}  f5 {[%clk 0:02:57]} 16. Rb1 {[%clk 0:02:24]}  b6 {[%clk 0:02:56]} 17. b4 {[%clk 0:02:22]}  axb4 {[%clk 0:02:57]} 18. axb4 {[%clk 0:02:21]}  Qe7 {[%clk 0:02:56]} 19. Nb5 {[%clk 0:02:02]}  Nf6 {[%clk 0:02:49]} 20. Bd3 {[%clk 0:01:49]}  Bxd2 {[%clk 0:02:37]} 21. Qxd2 {[%clk 0:01:48]}  fxe4 {[%clk 0:02:35]} 22. fxe4 {[%clk 0:01:47]}  Ng4 {[%clk 0:02:36]} 23. Be3 {[%clk 0:01:30]}  Rxf1+ {[%clk 0:02:33]} 24. Bxf1 {[%clk 0:01:29]}  Rf8 {[%clk 0:02:19]} 25. Bg5 {[%clk 0:01:16]}  Qf7 {[%clk 0:02:18]} 26. h3 {[%clk 0:01:13]}  Nf6 {[%clk 0:01:38]} 27. Bd3 {[%clk 0:01:10]}  Nh7 {[%clk 0:01:33]} 28. Bh6 {[%clk 0:01:03]}  Re8 {[%clk 0:01:30]} 29. Rf1 {[%clk 0:01:02]}  Qe7 {[%clk 0:01:30]} 30. Na7 {[%clk 0:00:44]}  Ra8 {[%clk 0:01:20]} 31. Nc6 {[%clk 0:00:42]}  Qe8 {[%clk 0:01:14]} 32. b5 {[%clk 0:00:27]}  Nc5 {[%clk 0:01:14]} 33. Bb1 {[%clk 0:00:26]}  Bxc6 {[%clk 0:00:53]} 34. dxc6 {[%clk 0:00:25]}  Qe6 {[%clk 0:00:53]} 35. Qd5 {[%clk 0:00:19]}  Ra1 {[%clk 0:00:42]} 36. Be3 {[%clk 0:00:12]}  Kg7 {[%clk 0:00:23]} 37. Qd2 {[%clk 0:00:04]}  Qxc4 {[%clk 0:00:17]} 38. Bh6+ {[%clk 0:00:03]}  Kg8 {[%clk 0:00:18]} 39. Qf2 {[%clk 0:00:00]}  Qd4 {[%clk 0:00:16]} 0-1


[Site "https://www.chess.com"]

[Event "Titled Tuesday Blitz May 9 Early 2023"]
[White "Yelisieiev, Yevhenii"]
[Black "Bashkansky, Ethan"]
[WhiteFideId "14139642"]
[BlackFideId "2071533"]
[WhiteElo "2403"]
[BlackElo "2348"]
[Result "1-0"]
[Round "04"]
[TimeControl "180+2"]
[Date "2023.05.09"]
[WhiteClock "0:00:16"]
[BlackClock "0:00:16"]

1. d4 {[%clk 0:03:00]}  f5 {[%clk 0:02:59]} 2. e4 {[%clk 0:02:48]}  fxe4 {[%clk 0:02:59]} 3. Nc3 {[%clk 0:02:48]}  Nf6 {[%clk 0:02:58]} 4. Bg5 {[%clk 0:02:47]}  c6 {[%clk 0:02:58]} 5. Bxf6 {[%clk 0:02:26]}  exf6 {[%clk 0:02:59]} 6. Nxe4 {[%clk 0:02:24]}  d5 {[%clk 0:02:59]} 7. Ng3 {[%clk 0:02:24]}  Bd6 {[%clk 0:02:58]} 8. Bd3 {[%clk 0:02:24]}  O-O {[%clk 0:02:57]} 9. N1e2 {[%clk 0:02:02]}  Bg4 {[%clk 0:02:50]} 10. Qd2 {[%clk 0:01:38]}  Nd7 {[%clk 0:02:38]} 11. O-O-O {[%clk 0:01:25]}  a5 {[%clk 0:02:28]} 12. Rde1 {[%clk 0:01:21]}  a4 {[%clk 0:02:19]} 13. Nf4 {[%clk 0:01:09]}  Qc7 {[%clk 0:02:15]} 14. Nge2 {[%clk 0:00:51]}  Rfe8 {[%clk 0:01:30]} 15. f3 {[%clk 0:00:46]}  Be6 {[%clk 0:01:26]} 16. Nxe6 {[%clk 0:00:41]}  Rxe6 {[%clk 0:01:27]} 17. Kb1 {[%clk 0:00:39]}  Rae8 {[%clk 0:01:19]} 18. g3 {[%clk 0:00:31]}  b5 {[%clk 0:01:18]} 19. Nc1 {[%clk 0:00:27]}  Qd8 {[%clk 0:01:11]} 20. Bf5 {[%clk 0:00:23]}  Rxe1 {[%clk 0:01:03]} 21. Rxe1 {[%clk 0:00:23]}  Nf8 {[%clk 0:00:53]} 22. Nd3 {[%clk 0:00:20]}  Rxe1+ {[%clk 0:00:51]} 23. Qxe1 {[%clk 0:00:20]}  Kf7 {[%clk 0:00:46]} 24. a3 {[%clk 0:00:19]}  Qe7 {[%clk 0:00:44]} 25. Qa5 {[%clk 0:00:18]}  g6 {[%clk 0:00:40]} 26. Bc8 {[%clk 0:00:18]}  Ne6 {[%clk 0:00:32]} 27. Bxe6+ {[%clk 0:00:12]}  Kxe6 {[%clk 0:00:32]} 28. Qb6 {[%clk 0:00:12]}  Qc7 {[%clk 0:00:29]} 29. Qa6 {[%clk 0:00:11]}  Kd7 {[%clk 0:00:25]} 30. Ka2 {[%clk 0:00:08]}  Qc8 {[%clk 0:00:24]} 31. Qb6 {[%clk 0:00:07]}  Qc7 {[%clk 0:00:24]} 32. Qa6 {[%clk 0:00:07]}  Qc8 {[%clk 0:00:23]} 33. Qa7+ {[%clk 0:00:07]}  Qc7 {[%clk 0:00:23]} 34. Nc5+ {[%clk 0:00:06]}  Bxc5 {[%clk 0:00:22]} 35. Qxc5 {[%clk 0:00:07]}  Qd6 {[%clk 0:00:22]} 36. Qb6 {[%clk 0:00:06]}  Qc7 {[%clk 0:00:22]} 37. Qa6 {[%clk 0:00:06]}  Qc8 {[%clk 0:00:21]} 38. Qa7+ {[%clk 0:00:07]}  Qc7 {[%clk 0:00:21]} 39. Qa8 {[%clk 0:00:07]}  Qc8 {[%clk 0:00:22]} 40. Qxc8+ {[%clk 0:00:08]}  Kxc8 {[%clk 0:00:22]} 41. b3 {[%clk 0:00:08]}  axb3+ {[%clk 0:00:15]} 42. cxb3 {[%clk 0:00:09]}  Kc7 {[%clk 0:00:15]} 43. a4 {[%clk 0:00:09]}  bxa4 {[%clk 0:00:01]} 44. bxa4 {[%clk 0:00:10]}  Kb6 {[%clk 0:00:02]} 45. Ka3 {[%clk 0:00:09]}  c5 {[%clk 0:00:02]} 46. dxc5+ {[%clk 0:00:07]}  Kxc5 {[%clk 0:00:03]} 47. Kb3 {[%clk 0:00:08]}  d4 {[%clk 0:00:02]} 48. f4 {[%clk 0:00:07]}  f5 {[%clk 0:00:03]} 49. Kc2 {[%clk 0:00:05]}  Kb4 {[%clk 0:00:01]} 50. Kd3 {[%clk 0:00:05]}  Kxa4 {[%clk 0:00:01]} 51. Kxd4 {[%clk 0:00:06]}  Kb3 {[%clk 0:00:02]} 52. Ke5 {[%clk 0:00:06]}  Kc3 {[%clk 0:00:02]} 53. Kf6 {[%clk 0:00:07]}  Kd4 {[%clk 0:00:03]} 54. Kg7 {[%clk 0:00:08]}  Ke4 {[%clk 0:00:03]} 55. Kxh7 {[%clk 0:00:08]}  Kf3 {[%clk 0:00:03]} 56. Kxg6 {[%clk 0:00:08]}  Kg4 {[%clk 0:00:04]} 57. Kf6 {[%clk 0:00:08]}  Kh5 {[%clk 0:00:04]} 58. Kxf5 {[%clk 0:00:08]}  Kh6 {[%clk 0:00:05]} 59. g4 {[%clk 0:00:09]}  Kg7 {[%clk 0:00:05]} 60. g5 {[%clk 0:00:09]}  Kh7 {[%clk 0:00:06]} 61. Kf6 {[%clk 0:00:09]}  Kg8 {[%clk 0:00:06]} 62. Kg6 {[%clk 0:00:10]}  Kh8 {[%clk 0:00:07]} 63. Kh6 {[%clk 0:00:10]}  Kg8 {[%clk 0:00:08]} 64. f5 {[%clk 0:00:10]}  Kh8 {[%clk 0:00:09]} 65. g6 {[%clk 0:00:10]}  Kg8 {[%clk 0:00:10]} 66. g7 {[%clk 0:00:10]}  Kf7 {[%clk 0:00:10]} 67. Kh7 {[%clk 0:00:11]}  Kf6 {[%clk 0:00:11]} 68. g8=Q {[%clk 0:00:11]}  Ke5 {[%clk 0:00:11]} 69. Qg6 {[%clk 0:00:12]}  Kf4 {[%clk 0:00:12]} 70. f6 {[%clk 0:00:13]}  Ke5 {[%clk 0:00:12]} 71. f7 {[%clk 0:00:14]}  Kd4 {[%clk 0:00:11]} 72. f8=Q {[%clk 0:00:15]}  Ke3 {[%clk 0:00:12]} 73. Qg3+ {[%clk 0:00:13]}  Kd4 {[%clk 0:00:13]} 74. Qff4+ {[%clk 0:00:14]}  Kc5 {[%clk 0:00:14]} 75. Qgg5+ {[%clk 0:00:14]}  Kb6 {[%clk 0:00:15]} 76. Qff6+ {[%clk 0:00:15]}  Kc7 {[%clk 0:00:15]} 77. Qgg7+ {[%clk 0:00:15]}  Kc8 {[%clk 0:00:16]} 78. Qff8# {[%clk 0:00:16]} 1-0


[Site "https://www.chess.com"]

[Event "Titled Tuesday Blitz May 9 Early 2023"]
[White "Devaev, Alexander"]
[Black "Todorovic, Bojan"]
[WhiteFideId "4169395"]
[BlackFideId "917087"]
[WhiteElo "2172"]
[BlackElo "2266"]
[Result "1-0"]
[Round "04"]
[TimeControl "180+2"]
[Date "2023.05.09"]
[WhiteClock "0:00:48"]
[BlackClock "0:00:00"]

1. Nf3 {[%clk 0:02:55]}  g6 {[%clk 0:02:59]} 2. d4 {[%clk 0:02:54]}  Bg7 {[%clk 0:02:59]} 3. c4 {[%clk 0:02:55]}  d6 {[%clk 0:02:58]} 4. Nc3 {[%clk 0:02:55]}  Nf6 {[%clk 0:02:57]} 5. e4 {[%clk 0:02:55]}  O-O {[%clk 0:02:57]} 6. h3 {[%clk 0:02:55]}  e5 {[%clk 0:02:55]} 7. d5 {[%clk 0:02:55]}  Na6 {[%clk 0:02:50]} 8. Bg5 {[%clk 0:02:56]}  h6 {[%clk 0:02:49]} 9. Be3 {[%clk 0:02:56]}  Nh5 {[%clk 0:02:24]} 10. Nh2 {[%clk 0:02:55]}  Nf4 {[%clk 0:02:12]} 11. Qd2 {[%clk 0:02:54]}  f5 {[%clk 0:01:54]} 12. g3 {[%clk 0:02:52]}  g5 {[%clk 0:01:29]} 13. h4 {[%clk 0:02:38]}  fxe4 {[%clk 0:01:20]} 14. hxg5 {[%clk 0:02:31]}  hxg5 {[%clk 0:01:19]} 15. Nxe4 {[%clk 0:02:30]}  Bf5 {[%clk 0:01:18]} 16. f3 {[%clk 0:01:32]}  Bxe4 {[%clk 0:00:48]} 17. fxe4 {[%clk 0:01:31]}  Ng6 {[%clk 0:00:13]} 18. Bxg5 {[%clk 0:01:30]}  Qd7 {[%clk 0:00:13]} 19. O-O-O {[%clk 0:01:20]}  Qa4 {[%clk 0:00:12]} 20. b3 {[%clk 0:01:11]}  Qa3+ {[%clk 0:00:12]} 21. Kb1 {[%clk 0:01:12]}  Nb4 {[%clk 0:00:09]} 22. Bh3 {[%clk 0:01:06]}  Rae8 {[%clk 0:00:03]} 23. Be6+ {[%clk 0:01:03]}  Rxe6 {[%clk 0:00:03]} 24. dxe6 {[%clk 0:01:04]}  a5 {[%clk 0:00:04]} 25. e7 {[%clk 0:01:02]}  Re8 {[%clk 0:00:03]} 26. Qb2 {[%clk 0:01:01]}  Qxb2+ {[%clk 0:00:02]} 27. Kxb2 {[%clk 0:01:01]}  Nc6 {[%clk 0:00:03]} 28. Ng4 {[%clk 0:01:00]}  Ncxe7 {[%clk 0:00:02]} 29. Bxe7 {[%clk 0:00:58]}  Nxe7 {[%clk 0:00:00]} 30. Ne3 {[%clk 0:00:48]} 1-0


[Site "https://www.chess.com"]